Workbook

Sheet Instructions
A1: Service Center Rate Development Worksheet
A2: University of Idaho
A4: General Information:
A11: Sheets and purposes:
A19: Rate Application:
A26: Example of ID* / J Doc (internal rev) & F Doc (external rev)
A36: Service Center Team contact information:
A37: Please direct all email correspondence to:
A38: UI Service Center Team | B38: osp-cost@uidaho.edu
A39: Team members and contact information:
A40: Shannon Shumard - Service Center Team Member | C40: sshumard@uidaho.edu | D40: 885-4013
A41: Catie Maas- Service Center Team Member | C41: catiem@uidaho.edu | D41: 885-5720

Sheet Rate Application
B1: Service Center Rate Application | L1: FY2025
B2: For rates effective: | E2: 2024-10-01 | H2: Application Type: | K2: New | L2: Renewal
B4: College/Division | E4: Office of Research and Economic Development
B5: Department | E5: Cost Accounting
B6: Service Center Name | E6: University Vandal Service Center
B7: Service Center Location & Room# | E7: Morrill Hall (017), Room 209D
B9: Contact Information: | E9: Name | H9: Email | K9: Phone #
B10: Worksheet preparer | E10: Suzie Grant | H10: sgrant@uidaho | K10: 208-885-4013
B11: College Fiscal Contact | E11: Suzie Grant | H11: sgrant@uidaho | K11: 208-885-4013 | Y11: Summary - Banner screen FGIGLAC by FUND, Prior FISCAL YEAR, ACCOUNT: 90RC (Revenue Control) to review
B12: Service Center Manager | E12: Joe Vandal | H12: jvandal@uidaho | K12: 208-885-4013
B14: 1) What % of total revenue is charged to internal UI Departments (including your own)? | K14: =X15 -> 0.6470588235 | S14: Index/ Fund # | T14: Index Name | W14: Rev | X14: Percent
B15: 1.a.) What % of the above internal revenue is charged to sponsored projects (22 funds)? | K15: =X16 -> 0.3636363636 | S15: 79XXXX/150000 | T15: University Vandal Service Center - Operating Account | W15: =REV!N4 -> 16500 | X15: =W15/W18 -> 0.6470588235 | Y15: Total for all Operating Acct OR if fund is not split out from external customers use the total for ID* revenue types / J Documents
B16: 2) What % of total revenue is charged to external (non-UI) customers? * | K16: =X17 -> 0.3529411765 | S16: 79XXXX/150000 | T16: University Vandal Service Center - Operating Account (22 Funds) | W16: =REV!I22 -> 6000 | X16: =W16/W15 -> 0.3636363636 | Y16: Total of all Funds starting with 22XXXX within the Operating Acct fund (From Service Centers billings)
B17: 3) Description of the product(s) or service(s) provided: | S17: 79XXXX/151000 | T17: University Vandal Service Center - External Customers Account | W17: =REV!N5 -> 9000 | X17: =W17/W18 -> 0.3529411765 | Y17: Total for External Acct OR if fund is not split into it's own index/fund for external customers only, then use the total revenue of all F Documents
W18: =SUM(W15,W17) -> 25500
B20: 4) Do competitors exist outside of the UI? | I20: Yes | J20: No | K20: If yes, please answer 4.a below
B21: 4.a.) Has a market analysis been completed | I21: Yes | J21: No | K21: Please provide analysis and brief description in 4.b
B22: 4.b.) If yes, briefly describe how the service center rates compare to market rates:
B23: These should not be creating an unfair advantage. If the market analysis is too long to provide details here, please statement to "See Attached Market Analysis" - the full market analysis should be attached with each annual service center rate review
B25: 5) Are services provided to certain users at discounted rates or free of charge? | K25: Yes | L25: No
B26: if yes, please complete the section below for imputed revenue and 5.a | N26: •Imputed Revenue: It is important to note that when a customer is charged a rate lower than those approved and on file, the center is essentially committed to subsidizing the difference. This often occurs as a result of offering discounts and waivers to customers. Centers that anticipate using this methodology should coordinate with their associated department or college to ensure that the effect to center net income will not be an issue. The guarantee index is a subsidy funding source used to transfer funds for deficits (<15% of annual revenue) that may occur.
B27: Estimated units of discount | L27: 250
B28: Estimated discount rate | L28: 20
B29: Estimated Imputed Revenue | L29: =SUM(L27*L28) -> 5000
B30: 5.a.) If different fees are charged, please elaborate (who do you charge more or less):
B31: Internal customers shouldn't be charged more, only external customers. One reason for charging more to an external customer could be a specific delivery fee for this one customer or less (charging the internal rate instead of external) is that they are part of our consortium agreement. Please remember that charging lower rates (subsidizing) could cause a deficit and should be built into this rate sheet to be reviewed for approval.
B33: Guarantee Index: | D33: 79XXXX
B34: (to be used if annual expenses create an index deficit > 15% of the Service Center's total annual revenue)
B36: New service center only:
B37: Source of start-up (seed) money: | I37: Amount:
B39: Dean or Department Head Approval:
B40: Name (please print): | H40: Title:
B41: Signature: | H41: Date:

Sheet REV
A1: Code | B1: Acct Code | C1: Trans Date | D1: Rucl Code | E1: Doc Code | F1: Trans Desc | G1: Trnas Amt | H1: Dr Cr Ind | I1: 22 Fund
A2: =LEFT(D:D,2) -> ID | B2: 90RC | C2: 6/11/24, 9:00:06 AM | D2: IDG | E2: J135XXXX | F2: MAY 2024 XXXX CHARGES | G2: 7000 | H2: Credit | I2: 2000 | K2: ID | L2: =SUMIF(A:A,K2,G:G) -> 16500
A3: TM | B3: 90RC | C3: 6/10/24, 11:59:59 PM | D3: TMIS | E3: F024XXXX | F3: GRT25XXXX | G3: 5000 | H3: Credit | K3: CT | L3: =SUMIF(A:A,K3,G:G) -> 0
A4: ID | B4: 90RC | C4: 6/6/24, 9:19:11 AM | D4: IDG | E4: J135XXXX | F4: FEES FOR FY 2024 - XX | G4: 3400 | H4: Credit | I4: 725 | K4: JE | L4: =SUMIF(A:A,K4,G:G) -> 0 | M4: Internal | N4: =SUM(L2:L4) -> 16500
A5: ID | B5: 90RC | C5: 5/30/24, 7:07:31 AM | D5: IDG | E5: J135XXXX | F5: 2024 XXXX Charges for XXXX | G5: 1040 | H5: Credit | I5: 600 | K5: TM | L5: =SUMIF(A:A,K5,G:G) -> 9000 | M5: External | N5: =L5 -> 9000
A6: ID | B6: 90RC | C6: 5/7/24, 7:13:07 AM | D6: IDG | E6: J135XXXX | F6: FY24 QTR 3 XXXX FEES | G6: 350 | H6: Credit | I6: 100 | L6: =SUM(L2:L5) -> 25500
A7: ID | B7: 90RC | C7: 5/6/24, 2:21:39 PM | D7: IDG | E7: J135XXXX | F7: FEES FOR FY 2024 - XX | G7: 2210 | H7: Credit | I7: 1075
A8: TM | B8: 90RC | C8: 4/16/24, 11:59:59 PM | D8: TMIS | E8: F024XXXX | F8: GRT25XXXX | G8: 4000 | H8: Credit
A9: ID | B9: 90RC | C9: 7/11/24, 9:00:06 AM | D9: IDG | E9: J135XXXX | F9: JUNE 2024 XXXX CHARGES | G9: 2500 | H9: Credit | I9: 1500
G22: =SUM(G2:G20) -> 25500 | I22: =SUM(I2:I20) -> 6000

Sheet Description_Notes
A1: Department Notes and Comments
A9: Notes about your service center
A10: Documentation and justifications for subsidizing rate and/or if surplus /deficit over 15% allowable carry-over balance. Rate development spreadsheet will automatically adjust rates down if there is surplus or up to cover deficits, if needed the service center will work with OSP to get plan in place to rebalance service center (making it break-even and compliant)
A28: Comments or suggestions to help us provide better service for you:

Sheet Information
A1: Index Information | J1: ='Rate Application'!L1 -> FY2025 | K1: =SUM(RIGHT(J1,4)-1) -> 2024
B3: Service Center Name * | E3: =IF('Rate Application'!E6=0,"Please fill in Cell E6 on Rate Application Page",'Rate Application'!E6) -> University Vandal Service Center
B4: Fund # ** | F4: 150000 | L4: =SUM(G8*I8) -> 25000 | M4: =SUM(20*250) -> 5000 | O4: =L4-M4 -> 20000
B5: Operating Index Carry Forward *** | F5: =J25 -> 1346.486857 | L5: =G9*I9 -> 7975 | O5: =O4+L5 -> 27975
B7: Service Name (short) | D7: Brief description of service | G7: Current Rate (if applicable) | H7: Unit † | I7: Estimated # of annual units ‡ | J7: Proposed New Rate
A8: 1) | B8: Data Analysis | D8: Analysis for service centers | G8: 50 | H8: Hour | I8: 500 | J8: ='Rate Summary'!D31 -> 65
A9: 2) | B9: Meeting Setups | D9: Planning and setup of zoom (hour meeting) | G9: 145 | H9: Fixed | I9: 55 | J9: ='Rate Summary'!E31 -> 185
A10: 3) | J10: ='Rate Summary'!F31 -> 0
A11: 4) | J11: ='Rate Summary'!G31 -> 0
A12: 5) | J12: ='Rate Summary'!H31 -> 0
A14: FUND BALANCE AND SUBSIDY INDEX INFORMATION:
A16: Operating index(s): | F16: ="FY"&RIGHT('Rate Application'!L1,2)-1 -> FY24
B17: Index/ Fund Number | C17: Index Name | F17: Carry Forward | G17: Revenue | H17: Expenditures | I17: Transfers | J17: Ending Balance | L17: 15% Allowable Carry-Over | M17: Percent of Surplus/Deficit | N17: Percent Over/Under 15% allowable Carry-Over
B18: 79XXXX/150000 | C18: University Vandal Service Center - Operating Account | F18: 3000 | G18: 16500 | H18: 14900 | J18: =F18+G18-H18-I18 -> 4600 | L18: =G18*0.15 -> 2475 | M18: =IFERROR(J18/G18,"") -> 0.2787878788 | N18: =IFERROR(IF(J18<0,"",J18/SUM(L18-J18)),"") -> -2.164705882
B19: 79XXXX/151000 | C19: University Vandal Service Center - External Customers Account | F19: -1500 | G19: 9000 | H19: 8000 | J19: =F19+G19-H19-I19 -> -500 | L19: =G19*0.15 -> 1350 | M19: =IFERROR(J19/G19,"") -> -0.05555555556 | N19: =IFERROR(IF(J19<0,"",J19/SUM(L19-J19)),"") -> 
F20: 0 | G20: 0 | H20: 0 | I20: 0 | J20: 0 | L20: 0 | M20: =IFERROR(J20/G20,"") -> 
F21: 0 | G21: 0 | H21: 0 | I21: 0 | J21: 0
C22: =CONCATENATE(K1," ","Recovered Depreciation") -> 2024 Recovered Depreciation | F22: 0 | G22: 0 | H22: 0 | I22: ='Salary Operating and Deprec Exp'!AB254 -> 2753.513143 | J22: -2753.513143
J23: 0
F24: 0 | G24: 0 | I24: 0 | J24: 0
B25: TOTAL OPERATING INDEX | F25: =SUM(F18:F24) -> 1500 | G25: =SUM(G18:G24) -> 25500 | H25: =SUM(H18:H24) -> 22900 | I25: =SUM(I18:I24) -> 2753.513143 | J25: =SUM(J18:J24) -> 1346.486857 | L25: =IFERROR(J25/G25,"") -> 0.05280340616 | M25: Total Percent of Surplus/Deficit (Combined Funds)
A26: Equipment replacement reserves ††
B27: 79XXXX/151001 | C27: University Vandal Service Center - Equip Reserve Account | F27: 5000 | I27: =-I22 -> -2753.513143 | J27: =F27+G27-H27-I27 -> 7753.513143
B28: FUND TOTAL | F28: =F27+F25 -> 6500 | G28: =G27+G25 -> 25500 | H28: =H27+H25 -> 22900 | I28: =I27+I25 -> 0 | J28: =J27+J25 -> 9100
A31: SUBSIDY INDEX INFORMATION:
B32: Index/ Fund Number | C32: Index Name
B33: 79XXXX/1211XX | C33: Department Funds Subsidy Account

Sheet Equipment list
A1: Identified | B1: Otag | C1: Ptag | D1: Resp Location Code | E1: Resp Location Title | F1: Building Number | G1: Xref | H1: Room Number | I1: Resp Orgn | J1: Dept | K1: Asset Type | L1: Fund Level 1 | M1: Fund Title 1 | N1: FY Acquired | O1: Total Cost | P1: F Seq | Q1: Index | R1: Fund | S1: Orgn | T1: Account | U1: Program | V1: Asset Name | W1: Disposal Date | X1: Accum Depr | Y1: Net Book Value | Z1: Dept Name | AA1: Useful Life | AB1: Remaining Life

Sheet Expense Detail
A1: Fiscal Year | B1: Fiscal Period | C1: Activity Date | D1: Chart | E1: Document Code | F1: Document Reference | G1: Vendor Name | H1: Encumbrance Number | I1: Transaction Description | J1: Transaction Date | K1: Transaction Type | L1: Grant Code | M1: Fund Type | N1: Fund Type Title | O1: Fund Level 3 | P1: Fund Title 3 | Q1: Fund Level 4 | R1: Fund Title 4 | S1: Fund Level 5 | T1: Fund Title 5 | U1: Fund Predecessor | V1: Fund Predecessor Title | W1: Fund | X1: Fund Title | Y1: Level 3 Org | Z1: Level 3 Org Title | AA1: Index Code | AB1: Index Title | AC1: Organization | AD1: Organization Title | AE1: PE | AF1: PE Title | AG1: Account | AH1: Account Title | AI1: Program | AJ1: Program Title | AK1: Activity | AL1: Activity Code Title | AM1: Location Code | AN1: Location Title | AO1: Dr Cr | AP1: Original Budget | AQ1: Adjusted Budget | AR1: YTD | AS1: Encumbrance
AV5: Account | AW5: Account Title | AX5: Sum of YTD
AV6: (blank) | AW6: (blank)
AV7: Grand Total

Sheet Salary Operating and Deprec Exp
A1: ='Rate Application'!L1 -> FY2025 | G1: =RIGHT(A1,4)-1 -> 2024 | J1: ** Employee Type: | K1: Employee Class | L1: Description: | M1: Fringe Rate:
A2: =IFERROR('Rate Application'!E7:L7,"") -> 
A3: =IFERROR('Rate Application'!E8:L8,"") ->  | J3: Faculty | K3: F1, F2, F3, F6, F7, F8, FC, SS | L3: All faculty | M3: 0.317
J4: Staff | K4: AC, C1, C2, C3, CM, E1, E2, E3, EC, P1, P2, P3, T1 | L4: Classified, Exempt & TH | M4: 0.401
A5: Salaries and Fringe Benefits | J5: Student | K5: GA, SF, SI, ST | L5: All other employee types | M5: 0.02
A6: For instructions on obtaining salary information, please see additional instructions provided on the Instructions page of this workbook | J6: Temp/IH | K6: E4, F4, F9, P4, T4, T5 | L6: Non-student: Temp/ Irregular Help | M6: 0.101
A8: Additional are hidden (rows 16-41). Unhide them if additional rows are needed. | I8: =Information!B8 -> Data Analysis | K8: =Information!B9 -> Meeting Setups | M8: =Information!B10 -> 0 | O8: =Information!B11 -> 0 | Q8: =Information!B12 -> 0 | S8: Subsidy | U8: Non-service center | W8: Check totals *
I9: =Information!D8 -> Analysis for service centers | K9: =Information!D9 -> Planning and setup of zoom (hour meeting) | M9: =Information!D10 -> 0 | O9: =Information!D11 -> 0 | Q9: =Information!D12 -> 0 | S9: (service center expense paid on another index) | U9: (portion of employee's salary not related to the service center and paid elsewhere) | W9: (should be equal to annual amount column)
A10: Name | B10: Employee V# | C10: PCN | D10: Employee Class ** | E10: Annual Salary | F10: FTE | G10: Fringe Benefits (estimate) | H10: Total Cost | I10: FTE % | J10: Amount | K10: FTE % | L10: Amount | M10: FTE % | N10: Amount | O10: FTE % | P10: Amount | Q10: FTE % | R10: Amount | S10: FTE % | T10: Amount | U10: FTE % | V10: Amount | W10: % | X10: Amount
A11: Joe Vandal | B11: V12345678 | C11: P11111 | D11: Faculty | E11: 65000 | F11: 1 | G11: =IF(E11=0,0,IF(D11="Faculty",((E11*F11)*$M$3),IF(D11="Staff",((E11*F11)*$M$4),IF(D11="Student",((F11*E11)*$M$5),IF(D11="Temp/IH",((F11*E11)*$M$6),"Need Type"))))) -> 20605 | H11: =G11+E11 -> 85605 | I11: 0.25 | J11: =I11*H11 -> 21401.25 | L11: =K11*H11 -> 0 | N11: =M11*H11 -> 0 | P11: =O11*H11 -> 0 | R11: =Q11*H11 -> 0 | S11: 0.5 | T11: =S11*$H11 -> 42802.5 | U11: =1-SUMIF(I11:T11,"<1.01",I11:T11) -> 0.25 | V11: =U11*$H11 -> 21401.25 | W11: =IFERROR(X11/H11,0) -> 1 | X11: =SUMIF(I11:V11,">1",I11:V11) -> 85605 | Y11: =IF(X11<>H11,"Check allocations","") -> 
A12: Suzie Grant | B12: V12345678 | C12: P2222 | D12: Staff | E12: 30000 | F12: 0.5 | G12: 6015 | H12: =G12+E12 -> 36015 | J12: =I12*H12 -> 0 | L12: 0 | N12: 0 | P12: =O12*H12 -> 0 | R12: =Q12*H12 -> 0 | S12: 0.05 | T12: =S12*$H12 -> 1800.75 | U12: 0.95 | V12: =U12*$H12 -> 34214.25 | W12: 1 | X12: 36015
D13: Faculty | G13: 0 | H13: =G13+E13 -> 0 | J13: =I13*H13 -> 0 | L13: 0 | N13: 0 | P13: =O13*H13 -> 0 | R13: =Q13*H13 -> 0 | T13: =S13*$H13 -> 0 | U13: 1 | V13: 0 | W13: 0 | X13: 0
D14: Faculty | G14: 0 | H14: =G14+E14 -> 0 | J14: =I14*H14 -> 0 | L14: 0 | N14: 0 | P14: =O14*H14 -> 0 | R14: =Q14*H14 -> 0 | T14: 0 | U14: 1 | V14: 0 | W14: 0 | X14: 0
D15: Faculty | G15: 0 | H15: =G15+E15 -> 0 | J15: =I15*H15 -> 0 | L15: 0 | N15: 0 | P15: =O15*H15 -> 0 | R15: =Q15*H15 -> 0 | T15: =S15*$H15 -> 0 | U15: 1 | V15: 0 | W15: 0 | X15: 0
D16: Faculty | G16: 0 | H16: =G16+E16 -> 0 | J16: =I16*H16 -> 0 | L16: 0 | N16: 0 | P16: =O16*H16 -> 0 | R16: =Q16*H16 -> 0 | T16: 0 | U16: 1 | V16: 0 | W16: 0 | X16: 0
D17: staff | G17: 0 | H17: =G17+E17 -> 0 | J17: =I17*H17 -> 0 | L17: 0 | N17: 0 | P17: =O17*H17 -> 0 | R17: =Q17*H17 -> 0 | T17: =S17*$H17 -> 0 | U17: 1 | V17: 0 | W17: 0 | X17: 0
D18: staff | G18: 0 | H18: =G18+E18 -> 0 | J18: =I18*H18 -> 0 | L18: 0 | N18: 0 | P18: =O18*H18 -> 0 | R18: =Q18*H18 -> 0 | T18: 0 | U18: 1 | V18: 0 | W18: 0 | X18: 0
D19: staff | G19: 0 | H19: =G19+E19 -> 0 | J19: =I19*H19 -> 0 | L19: 0 | N19: 0 | P19: =O19*H19 -> 0 | R19: =Q19*H19 -> 0 | T19: =S19*$H19 -> 0 | U19: 1 | V19: 0 | W19: 0 | X19: 0
D20: staff | G20: 0 | H20: =G20+E20 -> 0 | J20: =I20*H20 -> 0 | L20: 0 | N20: 0 | P20: =O20*H20 -> 0 | R20: =Q20*H20 -> 0 | T20: 0 | U20: 1 | V20: 0 | W20: 0 | X20: 0
D21: staff | G21: 0 | H21: =G21+E21 -> 0 | J21: 0 | L21: 0 | N21: 0 | P21: 0 | R21: 0 | T21: 0 | U21: 1 | V21: 0 | W21: 0 | X21: 0
D22: staff | G22: 0 | H22: 0 | J22: 0 | L22: 0 | N22: 0 | P22: 0 | R22: 0 | T22: 0 | U22: 1 | V22: 0 | W22: 0 | X22: 0
D23: staff | G23: 0 | H23: 0 | J23: 0 | L23: 0 | N23: 0 | P23: 0 | R23: 0 | T23: 0 | U23: 1 | V23: 0 | W23: 0 | X23: 0
D24: staff | G24: 0 | H24: 0 | J24: 0 | L24: 0 | N24: 0 | P24: 0 | R24: 0 | T24: 0 | U24: 1 | V24: 0 | W24: 0 | X24: 0
D25: staff | G25: 0 | H25: 0 | J25: 0 | L25: 0 | N25: 0 | P25: 0 | R25: 0 | T25: 0 | U25: 1 | V25: 0 | W25: 0 | X25: 0
D26: staff | G26: 0 | H26: 0 | J26: 0 | L26: 0 | N26: 0 | P26: 0 | R26: 0 | T26: 0 | U26: 1 | V26: 0 | W26: 0 | X26: 0
D27: staff | G27: 0 | H27: 0 | J27: 0 | L27: 0 | N27: 0 | P27: 0 | R27: 0 | T27: 0 | U27: 1 | V27: 0 | W27: 0 | X27: 0
D28: staff | G28: 0 | H28: 0 | J28: 0 | L28: 0 | N28: 0 | P28: 0 | R28: 0 | T28: 0 | U28: 1 | V28: 0 | W28: 0 | X28: 0
D29: staff | G29: 0 | H29: 0 | J29: 0 | L29: 0 | N29: 0 | P29: 0 | R29: 0 | T29: 0 | U29: 1 | V29: 0 | W29: 0 | X29: 0
D30: staff | G30: 0 | H30: =G30+E30 -> 0 | J30: 0 | L30: 0 | N30: 0 | P30: 0 | R30: 0 | T30: 0 | U30: 1 | V30: 0 | W30: 0 | X30: 0
D31: staff | G31: 0 | H31: 0 | J31: 0 | L31: 0 | N31: 0 | P31: 0 | R31: 0 | T31: 0 | U31: 1 | V31: 0 | W31: 0 | X31: 0
D32: staff | G32: 0 | H32: =G32+E32 -> 0 | J32: 0 | L32: 0 | N32: 0 | P32: 0 | R32: 0 | T32: 0 | U32: 1 | V32: 0 | W32: 0 | X32: 0
D33: staff | G33: 0 | H33: 0 | J33: 0 | L33: 0 | N33: 0 | P33: 0 | R33: 0 | T33: 0 | U33: 1 | V33: 0 | W33: 0 | X33: 0
D34: staff | G34: 0 | H34: 0 | J34: 0 | L34: 0 | N34: 0 | P34: 0 | R34: 0 | T34: 0 | U34: 1 | V34: 0 | W34: 0 | X34: 0
D35: student | G35: 0 | H35: 0 | J35: 0 | L35: 0 | N35: 0 | P35: 0 | R35: 0 | T35: 0 | U35: 1 | V35: 0 | W35: 0 | X35: 0
D36: student | G36: 0 | H36: 0 | J36: 0 | L36: 0 | N36: 0 | P36: 0 | R36: 0 | T36: 0 | U36: 1 | V36: 0 | W36: 0 | X36: 0
D37: student | G37: 0 | H37: 0 | J37: 0 | L37: 0 | N37: 0 | P37: 0 | R37: 0 | T37: 0 | U37: 1 | V37: 0 | W37: 0 | X37: 0
D38: student | G38: 0 | H38: 0 | J38: 0 | L38: 0 | N38: 0 | P38: 0 | R38: 0 | T38: 0 | U38: 1 | V38: 0 | W38: 0 | X38: 0
D39: student | G39: 0 | H39: 0 | J39: 0 | L39: 0 | N39: 0 | P39: 0 | R39: 0 | T39: 0 | U39: 1 | V39: 0 | W39: 0 | X39: 0
D40: student | G40: 0 | H40: 0 | J40: 0 | L40: 0 | N40: 0 | P40: 0 | R40: 0 | T40: 0 | U40: 1 | V40: 0 | W40: 0 | X40: 0
D41: student | G41: 0 | H41: 0 | J41: 0 | L41: 0 | N41: 0 | P41: 0 | R41: 0 | T41: 0 | U41: 1 | V41: 0 | W41: 0 | X41: 0
D42: student | G42: 0 | H42: 0 | J42: 0 | L42: 0 | N42: 0 | P42: 0 | R42: 0 | T42: 0 | U42: 1 | V42: 0 | W42: 0 | X42: 0
A44: GRAND TOTAL SALARIES | E44: =SUM(E11:E42) -> 95000 | F44: =SUM(F11:F42) -> 1.5 | G44: =SUM(G11:G42) -> 26620 | H44: =SUM(H11:H42) -> 121620 | I44: =J44/$X$44 -> 0.1759681796 | J44: =SUM(J11:J42) -> 21401.25 | K44: =L44/$X$44 -> 0 | L44: =SUM(L11:L42) -> 0 | M44: =N44/$X$44 -> 0 | N44: =SUM(N11:N42) -> 0 | O44: =P44/$X$44 -> 0 | P44: =SUM(P11:P42) -> 0 | Q44: =R44/$X$44 -> 0 | R44: =SUM(R11:R42) -> 0 | S44: =T44/$X$44 -> 0.3667427232 | T44: =SUM(T11:T42) -> 44603.25 | U44: =V44/$X$44 -> 0.4572890972 | V44: =SUM(V11:V42) -> 55615.5 | W44: =X44/$X$44 -> 1 | X44: =SUM(X11:X42) -> 121620 | Y44: =IF(X44<>H44,"Check allocations","") -> 
A46: Operating Expenses | B46: (Travel, Other Operating and Equipment under $5,000) | U46: Total charged to UI customers | X46: =SUM(R44,P44,N44,L44,J44) -> 21401.25
U47: Total subsidy | X47: =T44 -> 44603.25
U48: Total charged to external customers | X48: =SUM(X46:X47) -> 66004.5
D53: =Information!B8 -> Data Analysis | F53: =Information!B9 -> Meeting Setups | H53: =Information!B10 -> 0 | J53: =Information!B11 -> 0 | L53: =Information!B12 -> 0 | N53: =S8 -> Subsidy | P53: Check totals
D54: =Information!D8 -> Analysis for service centers | F54: =Information!D9 -> Planning and setup of zoom (hour meeting) | H54: =Information!D10 -> 0 | J54: =Information!D11 -> 0 | L54: =Information!D12 -> 0 | N54: =S9 -> (service center expense paid on another index) | P54: (this should be equal to annual amount column)
A55: Description (expense code title) | B55: Ecode | C55: Annual Amt | D55: % | E55: Amount | F55: % | G55: Amount | H55: % | I55: Amount | J55: % | K55: Amount | L55: % | M55: Amount | N55: % | O55: Amount | P55: % | Q55: Amount
A56: Supplies | C56: 3400 | D56: 0.45 | E56: =$C56*D56 -> 1530 | F56: 0.55 | G56: =$C56*F56 -> 1870 | I56: =$C56*H56 -> 0 | K56: =$C56*J56 -> 0 | M56: =$C56*L56 -> 0 | N56: =1-D56-F56-H56-J56-L56 -> 0 | O56: =$C56*N56 -> 0 | P56: =SUM(D56,F56,H56,J56,L56,N56) -> 1 | Q56: =SUM(E56,G56,I56,K56,M56,O56) -> 3400
A57: Subscription | C57: 2000 | E57: 0 | G57: 0 | I57: 0 | K57: 0 | M57: 0 | N57: =1-D57-F57-H57-J57-L57 -> 1 | O57: 2000 | P57: =SUM(D57,F57,H57,J57,L57,N57) -> 1 | Q57: =SUM(E57,G57,I57,K57,M57,O57) -> 2000
A58: Other services | C58: 9500 | D58: 0.2 | E58: 1900 | G58: 0 | I58: 0 | K58: 0 | M58: 0 | N58: 0.8 | O58: 7600 | P58: 1 | Q58: 9500
A59: Supplies- External User | C59: 8000 | D59: 0.5 | E59: 4000 | F59: 0.5 | G59: 4000 | I59: 0 | K59: 0 | M59: 0 | N59: 0 | O59: 0 | P59: 1 | Q59: 8000
E60: 0 | G60: 0 | I60: 0 | K60: 0 | M60: 0 | N60: 1 | O60: 0 | P60: 1 | Q60: 0
A61: Repairs | C61: 2500 | D61: 0.1 | E61: 250 | F61: 0.9 | G61: 2250 | I61: 0 | K61: 0 | M61: 0 | N61: 0 | O61: 0 | P61: 1 | Q61: 2500
E62: 0 | G62: 0 | I62: 0 | K62: 0 | M62: 0 | N62: 1 | O62: 0 | P62: 1 | Q62: 0
E63: 0 | G63: 0 | I63: 0 | K63: 0 | M63: 0 | N63: 1 | O63: 0 | P63: 1 | Q63: 0
E64: 0 | G64: 0 | I64: 0 | K64: 0 | M64: 0 | N64: 1 | O64: 0 | P64: 1 | Q64: 0
E65: 0 | G65: 0 | I65: 0 | K65: 0 | M65: 0 | N65: 1 | O65: 0 | P65: 1 | Q65: 0
E66: 0 | G66: 0 | I66: 0 | K66: 0 | M66: 0 | N66: 1 | O66: 0 | P66: 1 | Q66: 0
E67: 0 | G67: 0 | I67: 0 | K67: 0 | M67: 0 | N67: 1 | O67: 0 | P67: 1 | Q67: 0
E68: 0 | G68: 0 | I68: 0 | K68: 0 | M68: 0 | N68: 1 | O68: 0 | P68: 1 | Q68: 0
E69: 0 | G69: 0 | I69: 0 | K69: 0 | M69: 0 | N69: 1 | O69: 0 | P69: 1 | Q69: 0
E70: 0 | G70: 0 | I70: 0 | K70: 0 | M70: 0 | N70: 1 | O70: 0 | P70: 1 | Q70: 0
E71: 0 | G71: 0 | I71: 0 | K71: 0 | M71: 0 | N71: 1 | O71: 0 | P71: 1 | Q71: 0
E72: 0 | G72: 0 | I72: 0 | K72: 0 | M72: 0 | N72: 1 | O72: 0 | P72: 1 | Q72: 0
E73: 0 | G73: 0 | I73: 0 | K73: 0 | M73: 0 | N73: 1 | O73: 0 | P73: 1 | Q73: 0
E74: 0 | G74: 0 | I74: 0 | K74: 0 | M74: 0 | N74: 1 | O74: 0 | P74: 1 | Q74: 0
E75: 0 | G75: 0 | I75: 0 | K75: 0 | M75: 0 | N75: 1 | O75: 0 | P75: 1 | Q75: 0
E76: 0 | G76: 0 | I76: 0 | K76: 0 | M76: 0 | N76: 1 | O76: 0 | P76: 1 | Q76: 0
E77: 0 | G77: 0 | I77: 0 | K77: 0 | M77: 0 | N77: 1 | O77: 0 | P77: 1 | Q77: 0
E78: 0 | G78: 0 | I78: 0 | K78: 0 | M78: 0 | N78: 1 | O78: 0 | P78: 1 | Q78: 0
E79: 0 | G79: 0 | I79: 0 | K79: 0 | M79: 0 | N79: 1 | O79: 0 | P79: 1 | Q79: 0
E80: 0 | G80: 0 | I80: 0 | K80: 0 | M80: 0 | N80: 1 | O80: 0 | P80: 1 | Q80: 0
E81: 0 | G81: 0 | I81: 0 | K81: 0 | M81: 0 | N81: 1 | O81: 0 | P81: 1 | Q81: 0
E82: 0 | G82: 0 | I82: 0 | K82: 0 | M82: 0 | N82: 1 | O82: 0 | P82: 1 | Q82: 0
E83: 0 | G83: 0 | I83: 0 | K83: 0 | M83: 0 | N83: 1 | O83: 0 | P83: 1 | Q83: 0
E84: 0 | G84: 0 | I84: 0 | K84: 0 | M84: 0 | N84: 1 | O84: 0 | P84: 1 | Q84: 0
E85: 0 | G85: 0 | I85: 0 | K85: 0 | M85: 0 | N85: 1 | O85: 0 | P85: 1 | Q85: 0
E86: 0 | G86: 0 | I86: 0 | K86: 0 | M86: 0 | N86: 1 | O86: 0 | P86: 1 | Q86: 0
E87: 0 | G87: 0 | I87: 0 | K87: 0 | M87: 0 | N87: 1 | O87: 0 | P87: 1 | Q87: 0
E88: =$C88*D88 -> 0 | G88: =$C88*F88 -> 0 | I88: =$C88*H88 -> 0 | K88: =$C88*J88 -> 0 | M88: =$C88*L88 -> 0 | N88: 1 | O88: =$C88*N88 -> 0 | P88: 1 | Q88: 0
E89: 0 | G89: 0 | I89: 0 | K89: 0 | M89: 0 | N89: 1 | O89: 0 | P89: 1 | Q89: 0
E90: 0 | G90: 0 | I90: 0 | K90: 0 | M90: 0 | N90: 1 | O90: 0 | P90: 1 | Q90: 0
E91: 0 | G91: 0 | I91: 0 | K91: 0 | M91: 0 | N91: 1 | O91: 0 | P91: 1 | Q91: 0
E92: 0 | G92: 0 | I92: 0 | K92: 0 | M92: 0 | N92: 1 | O92: 0 | P92: 1 | Q92: 0
E93: 0 | G93: 0 | I93: 0 | K93: 0 | M93: 0 | N93: 1 | O93: 0 | P93: 1 | Q93: 0
E94: 0 | G94: 0 | I94: 0 | K94: 0 | M94: 0 | N94: 1 | O94: 0 | P94: 1 | Q94: 0
E95: 0 | G95: 0 | I95: 0 | K95: 0 | M95: 0 | N95: 1 | O95: 0 | P95: 1 | Q95: 0
E96: 0 | G96: 0 | I96: 0 | K96: 0 | M96: 0 | N96: 1 | O96: 0 | P96: 1 | Q96: 0
E97: 0 | G97: 0 | I97: 0 | K97: 0 | M97: 0 | N97: 1 | O97: 0 | P97: 1 | Q97: 0
E98: 0 | G98: 0 | I98: 0 | K98: 0 | M98: 0 | N98: 1 | O98: 0 | P98: 1 | Q98: 0
E99: 0 | G99: 0 | I99: 0 | K99: 0 | M99: 0 | N99: 1 | O99: 0 | P99: 1 | Q99: 0
E100: 0 | G100: 0 | I100: 0 | K100: 0 | M100: 0 | N100: 1 | O100: 0 | P100: 1 | Q100: 0
E101: 0 | G101: 0 | I101: 0 | K101: 0 | M101: 0 | N101: 1 | O101: 0 | P101: 1 | Q101: 0
E102: 0 | G102: 0 | I102: 0 | K102: 0 | M102: 0 | N102: 1 | O102: 0 | P102: 1 | Q102: 0
E103: 0 | G103: 0 | I103: 0 | K103: 0 | M103: 0 | N103: 1 | O103: 0 | P103: 1 | Q103: 0
E104: 0 | G104: 0 | I104: 0 | K104: 0 | M104: 0 | N104: 1 | O104: 0 | P104: 1 | Q104: 0
E105: 0 | G105: 0 | I105: 0 | K105: 0 | M105: 0 | N105: 1 | O105: 0 | P105: 1 | Q105: 0
E106: 0 | G106: 0 | I106: 0 | K106: 0 | M106: 0 | N106: 1 | O106: 0 | P106: 1 | Q106: 0
E107: 0 | G107: 0 | I107: 0 | K107: 0 | M107: 0 | N107: 1 | O107: 0 | P107: 1 | Q107: 0
E108: 0 | G108: 0 | I108: 0 | K108: 0 | M108: 0 | N108: 1 | O108: 0 | P108: 1 | Q108: 0
E109: 0 | G109: 0 | I109: 0 | K109: 0 | M109: 0 | N109: 1 | O109: 0 | P109: 1 | Q109: 0
E110: 0 | G110: 0 | I110: 0 | K110: 0 | M110: 0 | N110: 1 | O110: 0 | P110: 1 | Q110: 0
E111: 0 | G111: 0 | I111: 0 | K111: 0 | M111: 0 | N111: 1 | O111: 0 | P111: 1 | Q111: 0
E112: 0 | G112: 0 | I112: 0 | K112: 0 | M112: 0 | N112: 1 | O112: 0 | P112: 1 | Q112: 0
E113: 0 | G113: 0 | I113: 0 | K113: 0 | M113: 0 | N113: 1 | O113: 0 | P113: 1 | Q113: 0
E114: 0 | G114: 0 | I114: 0 | K114: 0 | M114: 0 | N114: 1 | O114: 0 | P114: 1 | Q114: 0
E115: 0 | G115: 0 | I115: 0 | K115: 0 | M115: 0 | N115: 1 | O115: 0 | P115: 1 | Q115: 0
E116: 0 | G116: 0 | I116: 0 | K116: 0 | M116: 0 | N116: 1 | O116: 0 | P116: 1 | Q116: 0
E117: 0 | G117: 0 | I117: 0 | K117: 0 | M117: 0 | N117: 1 | O117: 0 | P117: 1 | Q117: 0
E118: 0 | G118: 0 | I118: 0 | K118: 0 | M118: 0 | N118: 1 | O118: 0 | P118: 1 | Q118: 0
E119: 0 | G119: 0 | I119: 0 | K119: 0 | M119: 0 | N119: 1 | O119: 0 | P119: 1 | Q119: 0
E120: =$C120*D120 -> 0 | G120: =$C120*F120 -> 0 | I120: =$C120*H120 -> 0 | K120: =$C120*J120 -> 0 | M120: =$C120*L120 -> 0 | N120: 1 | O120: =$C120*N120 -> 0 | P120: 1 | Q120: 0
E121: 0 | G121: 0 | I121: 0 | K121: 0 | M121: 0 | N121: =1-D121-F121-H121-J121-L121 -> 1 | O121: 0 | P121: =SUM(D121,F121,H121,J121,L121,N121) -> 1 | Q121: =SUM(E121,G121,I121,K121,M121,O121) -> 0
E122: 0 | G122: 0 | I122: 0 | K122: 0 | M122: 0 | N122: 1 | O122: 0 | P122: 1 | Q122: 0
E123: 0 | G123: 0 | I123: 0 | K123: 0 | M123: 0 | N123: 1 | O123: 0 | P123: 1 | Q123: 0
A125: GRAND TOTAL OPERATING EXPENSES: | C125: =SUM(C56:C123) -> 25400 | D125: =E125/$Q$125 -> 0.3023622047 | E125: =SUM(E56:E123) -> 7680 | F125: =G125/$Q$125 -> 0.3196850394 | G125: =SUM(G56:G123) -> 8120 | H125: =I125/$Q$125 -> 0 | I125: =SUM(I56:I123) -> 0 | J125: =K125/$Q$125 -> 0 | K125: =SUM(K56:K123) -> 0 | L125: =M125/$Q$125 -> 0 | M125: =SUM(M56:M123) -> 0 | N125: =O125/$Q$125 -> 0.3779527559 | O125: =SUM(O56:O123) -> 9600 | P125: =Q125/$Q$125 -> 1 | Q125: =SUM(Q56:Q123) -> 25400
N127: Total charged to UI customers | Q127: =SUM(M125,K125,I125,G125,E125) -> 15800
N128: Total subsidy | Q128: =O125 -> 9600
H129: =ABS(RIGHT('Rate Application'!L136,4)) ->  | N129: Total charged to external customers | Q129: =SUM(Q127:Q128) -> 25400
A130: Capital Equipment and Depreciation
M136: =D53 -> Data Analysis | O136: =F53 -> Meeting Setups | Q136: =H53 -> 0 | S136: =J53 -> 0 | U136: =L53 -> 0 | W136: Subsidy | Y136: Unallowable equipment * | AA136: Depreciation Included in Rate
M137: =D54 -> Analysis for service centers | O137: =F54 -> Planning and setup of zoom (hour meeting) | Q137: =H54 -> 0 | S137: =J54 -> 0 | U137: =L54 -> 0 | W137: Service center expense paid on another index | Y137: Used in service center but unallowable in rates (e.g. purchased with Federal funds) | AA137: Amount of depreciation charged to customers
A138: Description/Type of Equipment | B138: Asset Type | C138: Bld/Rm | D138: Otag | E138: UI Property Tag# | F138: Acquisition Index/Fund No. | G138: Fiscal Year Acquistion | H138: Depr Start Year | I138: Depr End Year | J138: Acquisition Cost | K138: Useful Life (years) | L138: Annual Depreciation | M138: % | N138: Amount | O138: % | P138: Amount | Q138: % | R138: Amount | S138: % | T138: Amount | U138: % | V138: Amount | W138: % | X138: Amount | Y138: % | Z138: Amount | AA138: % | AB138: Amount
A139: Picnic Table | B139: FN | C139: 017/209D | D139: T00472271 | E139: 198673 | F139: 151000 | G139: 2017 | H139: =G139 -> 2017 | I139: =IF(G139>0,G139+K139-1,"") -> 2026 | J139: 6106.56 | K139: 10 | L139: =IFERROR(IF($G$1>I139,0,J139/K139),"") -> 610.656 | M139: 1 | N139: =IFERROR(($L139*M139),"") -> 610.656 | P139: 0 | R139: 0 | T139: 0 | V139: 0 | W139: =1-Y139-M139-O139-Q139-S139-U139 -> 0 | X139: 0 | Z139: 0 | AA139: =SUM(M139,O139,Q139,S139,U139,Y139,W139) -> 1 | AB139: =SUM(N139,P139,R139,T139,V139,Z139,X139) -> 610.656
A140: Video Conference System | B140: ME | D140: T00472461 | E140: 198790 | F140: 151000 | G140: 2017 | H140: =G140 -> 2017 | I140: =IF(G140>0,G140+K140-1,"") -> 2023 | J140: 8000 | K140: 7 | L140: =IFERROR(IF($G$1>I140,0,J140/K140),"") -> 0 | N140: 0 | P140: =IFERROR(($L140*O140),"") -> 0 | R140: =IFERROR(($L140*Q140),"") -> 0 | T140: =IFERROR(($L140*S140),"") -> 0 | V140: =IFERROR(($L140*U140),"") -> 0 | W140: =1-Y140-M140-O140-Q140-S140-U140 -> 1 | X140: =IFERROR(($L140*W140),"") -> 0 | Z140: =IFERROR(($L140*Y140),"") -> 0 | AA140: =SUM(M140,O140,Q140,S140,U140,Y140,W140) -> 1 | AB140: =SUM(N140,P140,R140,T140,V140,Z140,X140) -> 0
A141: Microscope w/Camera | B141: LE | C141: 017/209D | D141: T00476515 | E141: 406949 | F141: 220000 | G141: 2021 | H141: 2021 | I141: 2027 | J141: 17554.95 | K141: 7 | L141: 2507.85 | N141: =IFERROR(($L141*M141),"") -> 0 | P141: =IFERROR(($L141*O141),"") -> 0 | R141: 0 | T141: 0 | V141: 0 | W141: 0 | X141: =IFERROR(($L141*W141),"") -> 0 | Y141: 1 | Z141: =IFERROR(($L141*Y141),"") -> 2507.85 | AA141: 1 | AB141: 2507.85
H142: 0 | N142: =IFERROR(($L142*M142),"") ->  | P142: =IFERROR(($L142*O142),"") ->  | W142: 1 | X142: =IFERROR(($L142*W142),"") ->  | Z142: =IFERROR(($L142*Y142),"") ->  | AA142: 1 | AB142: 0
H143: 0 | W143: 1 | X143: =IFERROR(($L143*W143),"") ->  | Z143: =IFERROR(($L143*Y143),"") ->  | AA143: 1 | AB143: 0
H144: 0 | W144: 1 | X144: =IFERROR(($L144*W144),"") ->  | Z144: =IFERROR(($L144*Y144),"") ->  | AA144: 1 | AB144: 0
A145: Video Projector | B145: ME | C145: 017/209D | E145: XXXXXX | F145: 12XXXX | G145: 2023 | H145: 2023 | I145: 2029 | J145: 15000 | K145: 7 | L145: 2142.857143 | M145: 0.15 | N145: 321.4285714 | O145: 0.85 | P145: 1821.428571 | R145: 0 | T145: 0 | V145: 0 | W145: 0 | X145: =IFERROR(($L145*W145),"") -> 0 | Z145: =IFERROR(($L145*Y145),"") -> 0 | AA145: 1 | AB145: 2142.857143
H146: 0 | W146: 1 | X146: =IFERROR(($L146*W146),"") ->  | Z146: =IFERROR(($L146*Y146),"") ->  | AA146: 1 | AB146: 0
H147: 0 | W147: 1 | X147: =IFERROR(($L147*W147),"") ->  | Z147: =IFERROR(($L147*Y147),"") ->  | AA147: 1 | AB147: 0
H148: 0 | W148: 1 | X148: =IFERROR(($L148*W148),"") ->  | Z148: =IFERROR(($L148*Y148),"") ->  | AA148: 1 | AB148: 0
H149: 0 | W149: 1 | X149: =IFERROR(($L149*W149),"") ->  | Z149: =IFERROR(($L149*Y149),"") ->  | AA149: 1 | AB149: 0
H150: 0 | W150: 1 | X150: =IFERROR(($L150*W150),"") ->  | Z150: =IFERROR(($L150*Y150),"") ->  | AA150: 1 | AB150: 0
H151: 0 | W151: 1 | X151: =IFERROR(($L151*W151),"") ->  | Z151: =IFERROR(($L151*Y151),"") ->  | AA151: 1 | AB151: 0
H152: 0 | W152: 1 | X152: =IFERROR(($L152*W152),"") ->  | Z152: =IFERROR(($L152*Y152),"") ->  | AA152: 1 | AB152: 0
H153: 0 | W153: 1 | X153: =IFERROR(($L153*W153),"") ->  | Z153: =IFERROR(($L153*Y153),"") ->  | AA153: 1 | AB153: 0
H154: 0 | W154: 1 | X154: =IFERROR(($L154*W154),"") ->  | Z154: =IFERROR(($L154*Y154),"") ->  | AA154: 1 | AB154: 0
H155: 0 | W155: 1 | X155: =IFERROR(($L155*W155),"") ->  | Z155: =IFERROR(($L155*Y155),"") ->  | AA155: 1 | AB155: 0
H156: 0 | W156: 1 | X156: =IFERROR(($L156*W156),"") ->  | Z156: =IFERROR(($L156*Y156),"") ->  | AA156: 1 | AB156: 0
H157: 0 | W157: 1 | X157: =IFERROR(($L157*W157),"") ->  | Z157: =IFERROR(($L157*Y157),"") ->  | AA157: 1 | AB157: 0
H158: 0 | W158: 1 | X158: =IFERROR(($L158*W158),"") ->  | Z158: =IFERROR(($L158*Y158),"") ->  | AA158: 1 | AB158: 0
H159: 0 | W159: 1 | X159: =IFERROR(($L159*W159),"") ->  | Z159: =IFERROR(($L159*Y159),"") ->  | AA159: 1 | AB159: 0
H160: 0 | W160: 1 | X160: =IFERROR(($L160*W160),"") ->  | Z160: =IFERROR(($L160*Y160),"") ->  | AA160: 1 | AB160: 0
H161: 0 | W161: 1 | X161: =IFERROR(($L161*W161),"") ->  | Z161: =IFERROR(($L161*Y161),"") ->  | AA161: 1 | AB161: 0
H162: 0 | W162: 1 | X162: =IFERROR(($L162*W162),"") ->  | Z162: =IFERROR(($L162*Y162),"") ->  | AA162: 1 | AB162: 0
H163: 0 | W163: 1 | X163: =IFERROR(($L163*W163),"") ->  | Z163: =IFERROR(($L163*Y163),"") ->  | AA163: 1 | AB163: 0
H164: 0 | W164: 1 | X164: =IFERROR(($L164*W164),"") ->  | Z164: =IFERROR(($L164*Y164),"") ->  | AA164: 1 | AB164: 0
H165: 0 | W165: 1 | X165: =IFERROR(($L165*W165),"") ->  | Z165: =IFERROR(($L165*Y165),"") ->  | AA165: 1 | AB165: 0
H166: 0 | W166: 1 | X166: =IFERROR(($L166*W166),"") ->  | Z166: =IFERROR(($L166*Y166),"") ->  | AA166: 1 | AB166: 0
H167: 0 | W167: 1 | X167: =IFERROR(($L167*W167),"") ->  | Z167: =IFERROR(($L167*Y167),"") ->  | AA167: 1 | AB167: 0
H168: 0 | W168: 1 | X168: =IFERROR(($L168*W168),"") ->  | Z168: =IFERROR(($L168*Y168),"") ->  | AA168: 1 | AB168: 0
H169: 0 | W169: 1 | X169: =IFERROR(($L169*W169),"") ->  | Z169: =IFERROR(($L169*Y169),"") ->  | AA169: 1 | AB169: 0
H170: 0 | W170: 1 | X170: =IFERROR(($L170*W170),"") ->  | Z170: =IFERROR(($L170*Y170),"") ->  | AA170: 1 | AB170: 0
H171: 0 | W171: 1 | X171: =IFERROR(($L171*W171),"") ->  | Z171: =IFERROR(($L171*Y171),"") ->  | AA171: 1 | AB171: 0
H172: 0 | W172: 1 | X172: =IFERROR(($L172*W172),"") ->  | Z172: =IFERROR(($L172*Y172),"") ->  | AA172: 1 | AB172: 0
H173: 0 | W173: 1 | X173: =IFERROR(($L173*W173),"") ->  | Z173: =IFERROR(($L173*Y173),"") ->  | AA173: 1 | AB173: 0
H174: 0 | W174: 1 | X174: =IFERROR(($L174*W174),"") ->  | Z174: =IFERROR(($L174*Y174),"") ->  | AA174: 1 | AB174: 0
H175: 0 | W175: 1 | X175: =IFERROR(($L175*W175),"") ->  | Z175: =IFERROR(($L175*Y175),"") ->  | AA175: 1 | AB175: 0
H176: 0 | W176: 1 | X176: =IFERROR(($L176*W176),"") ->  | Z176: =IFERROR(($L176*Y176),"") ->  | AA176: 1 | AB176: 0
H177: 0 | W177: 1 | X177: =IFERROR(($L177*W177),"") ->  | Z177: =IFERROR(($L177*Y177),"") ->  | AA177: 1 | AB177: 0
H178: 0 | W178: 1 | X178: =IFERROR(($L178*W178),"") ->  | Z178: =IFERROR(($L178*Y178),"") ->  | AA178: 1 | AB178: 0
H179: 0 | W179: 1 | X179: =IFERROR(($L179*W179),"") ->  | Z179: =IFERROR(($L179*Y179),"") ->  | AA179: 1 | AB179: 0
H180: 0 | W180: 1 | X180: =IFERROR(($L180*W180),"") ->  | Z180: =IFERROR(($L180*Y180),"") ->  | AA180: 1 | AB180: 0
H181: 0 | W181: 1 | X181: =IFERROR(($L181*W181),"") ->  | Z181: =IFERROR(($L181*Y181),"") ->  | AA181: 1 | AB181: 0
H182: 0 | W182: 1 | X182: =IFERROR(($L182*W182),"") ->  | Z182: =IFERROR(($L182*Y182),"") ->  | AA182: 1 | AB182: 0
H183: 0 | W183: 1 | X183: =IFERROR(($L183*W183),"") ->  | Z183: =IFERROR(($L183*Y183),"") ->  | AA183: 1 | AB183: 0
H184: 0 | W184: 1 | X184: =IFERROR(($L184*W184),"") ->  | Z184: =IFERROR(($L184*Y184),"") ->  | AA184: 1 | AB184: 0
H185: 0 | W185: 1 | X185: =IFERROR(($L185*W185),"") ->  | Z185: =IFERROR(($L185*Y185),"") ->  | AA185: 1 | AB185: 0
H186: 0 | W186: 1 | X186: =IFERROR(($L186*W186),"") ->  | Z186: =IFERROR(($L186*Y186),"") ->  | AA186: 1 | AB186: 0
H187: 0 | W187: 1 | X187: =IFERROR(($L187*W187),"") ->  | Z187: =IFERROR(($L187*Y187),"") ->  | AA187: 1 | AB187: 0
H188: 0 | W188: 1 | X188: =IFERROR(($L188*W188),"") ->  | Z188: =IFERROR(($L188*Y188),"") ->  | AA188: 1 | AB188: 0
H189: 0 | W189: 1 | X189: =IFERROR(($L189*W189),"") ->  | Z189: =IFERROR(($L189*Y189),"") ->  | AA189: 1 | AB189: 0
H190: 0 | W190: 1 | X190: =IFERROR(($L190*W190),"") ->  | Z190: =IFERROR(($L190*Y190),"") ->  | AA190: 1 | AB190: 0
H191: 0 | W191: 1 | X191: =IFERROR(($L191*W191),"") ->  | Z191: =IFERROR(($L191*Y191),"") ->  | AA191: 1 | AB191: 0
H192: 0 | W192: 1 | X192: =IFERROR(($L192*W192),"") ->  | Z192: =IFERROR(($L192*Y192),"") ->  | AA192: 1 | AB192: 0
H193: 0 | W193: 1 | X193: =IFERROR(($L193*W193),"") ->  | Z193: =IFERROR(($L193*Y193),"") ->  | AA193: 1 | AB193: 0
H194: 0 | W194: 1 | X194: =IFERROR(($L194*W194),"") ->  | Z194: =IFERROR(($L194*Y194),"") ->  | AA194: 1 | AB194: 0
H195: 0 | W195: 1 | X195: =IFERROR(($L195*W195),"") ->  | Z195: =IFERROR(($L195*Y195),"") ->  | AA195: 1 | AB195: 0
H196: 0 | W196: 1 | X196: =IFERROR(($L196*W196),"") ->  | Z196: =IFERROR(($L196*Y196),"") ->  | AA196: 1 | AB196: 0
H197: 0 | W197: 1 | X197: =IFERROR(($L197*W197),"") ->  | Z197: =IFERROR(($L197*Y197),"") ->  | AA197: 1 | AB197: 0
H198: 0 | W198: 1 | X198: =IFERROR(($L198*W198),"") ->  | Z198: =IFERROR(($L198*Y198),"") ->  | AA198: 1 | AB198: 0
H199: 0 | W199: 1 | X199: =IFERROR(($L199*W199),"") ->  | Z199: =IFERROR(($L199*Y199),"") ->  | AA199: 1 | AB199: 0
H200: 0 | W200: 1 | X200: =IFERROR(($L200*W200),"") ->  | Z200: =IFERROR(($L200*Y200),"") ->  | AA200: 1 | AB200: 0
H201: 0 | W201: 1 | X201: =IFERROR(($L201*W201),"") ->  | Z201: =IFERROR(($L201*Y201),"") ->  | AA201: 1 | AB201: 0
H202: 0 | W202: 1 | X202: =IFERROR(($L202*W202),"") ->  | Z202: =IFERROR(($L202*Y202),"") ->  | AA202: 1 | AB202: 0
H203: 0 | W203: 1 | X203: =IFERROR(($L203*W203),"") ->  | Z203: =IFERROR(($L203*Y203),"") ->  | AA203: 1 | AB203: 0
H204: =G204 -> 0 | I204: =IF(G204>0,G204+K204-1,"") ->  | L204: =IFERROR(IF($G$1>I204,0,J204/K204),"") ->  | R204: =IFERROR(($L204*Q204),"") ->  | T204: =IFERROR(($L204*S204),"") ->  | V204: =IFERROR(($L204*U204),"") ->  | W204: =1-Y204-M204-O204-Q204-S204-U204 -> 1 | X204: =IFERROR(($L204*W204),"") ->  | Z204: =IFERROR(($L204*Y204),"") ->  | AA204: =SUM(M204,O204,Q204,S204,U204,Y204,W204) -> 1 | AB204: =SUM(N204,P204,R204,T204,V204,Z204,X204) -> 0
H205: 0 | W205: 1 | X205: =IFERROR(($L205*W205),"") ->  | Z205: =IFERROR(($L205*Y205),"") ->  | AA205: 1 | AB205: 0
H206: 0 | N206: =IFERROR(($L206*M206),"") ->  | P206: =IFERROR(($L206*O206),"") ->  | W206: 1 | X206: =IFERROR(($L206*W206),"") ->  | Z206: =IFERROR(($L206*Y206),"") ->  | AA206: 1 | AB206: 0
H207: 0 | W207: 1 | X207: =IFERROR(($L207*W207),"") ->  | Z207: =IFERROR(($L207*Y207),"") ->  | AA207: 1 | AB207: 0
H208: 0 | W208: 1 | X208: =IFERROR(($L208*W208),"") ->  | Z208: =IFERROR(($L208*Y208),"") ->  | AA208: 1 | AB208: 0
H209: 0 | W209: 1 | X209: =IFERROR(($L209*W209),"") ->  | Z209: =IFERROR(($L209*Y209),"") ->  | AA209: 1 | AB209: 0
H210: 0 | W210: 1 | X210: =IFERROR(($L210*W210),"") ->  | Z210: =IFERROR(($L210*Y210),"") ->  | AA210: 1 | AB210: 0
H211: 0 | W211: 1 | X211: =IFERROR(($L211*W211),"") ->  | Z211: =IFERROR(($L211*Y211),"") ->  | AA211: 1 | AB211: 0
H212: 0 | W212: 1 | X212: =IFERROR(($L212*W212),"") ->  | Z212: =IFERROR(($L212*Y212),"") ->  | AA212: 1 | AB212: 0
H213: 0 | W213: 1 | X213: =IFERROR(($L213*W213),"") ->  | Z213: =IFERROR(($L213*Y213),"") ->  | AA213: 1 | AB213: 0
H214: 0 | W214: 1 | X214: =IFERROR(($L214*W214),"") ->  | Z214: =IFERROR(($L214*Y214),"") ->  | AA214: 1 | AB214: 0
... 43 more rows

Sheet Rate Summary
A1: =IFERROR('Rate Application'!E7:L7,"") -> 
A2: =Information!F4 -> 150000
A3: Service Center Rate Summary Sheet
A4: ='Rate Application'!L1 -> FY2025
I6: TOTAL
B7: Y/N | C7: % | D7: =Information!B8 -> Data Analysis | E7: =Information!B9 -> Meeting Setups | F7: =Information!B10 -> 0 | G7: =Information!B11 -> 0 | H7: =Information!B12 -> 0 | I7: All Services
A8: Current year rates | D8: =IF((ISBLANK(Information!G$8)=TRUE),"N/A",+Information!G$8) -> 50 | E8: =IF((ISBLANK(Information!$G9)=TRUE),"N/A",+Information!$G9) -> 145 | F8: =IF((ISBLANK(Information!$G10)=TRUE),"N/A",+Information!$G10) -> N/A | G8: =IF((ISBLANK(Information!$G11)=TRUE),"N/A",+Information!$G11) -> N/A | H8: =IF((ISBLANK(Information!$G12)=TRUE),"N/A",+Information!$G12) -> N/A | I8: (not include subsidy)
A9: Prior Year Fund Balance (if applicable) | D9: =IFERROR((Information!$F$5*'Rate Summary'!D34),0) -> 1011.457893 | E9: =IFERROR((Information!$F$5*'Rate Summary'!E34),0) -> 335.0289643 | F9: =IFERROR((Information!$F$5*'Rate Summary'!F34),0) -> 0 | G9: =IFERROR((Information!$F$5*'Rate Summary'!G34),0) -> 0 | H9: =IFERROR((Information!$F$5*'Rate Summary'!H34),0) -> 0 | I9: =SUM(D9:H9) -> 1346.486857
A11: ANNUAL COSTS
A12: Salaries and Fringe Benefits | D12: ='Salary Operating and Deprec Exp'!J44 -> 21401.25 | E12: ='Salary Operating and Deprec Exp'!L44 -> 0 | F12: ='Salary Operating and Deprec Exp'!N44 -> 0 | G12: ='Salary Operating and Deprec Exp'!P44 -> 0 | H12: ='Salary Operating and Deprec Exp'!R44 -> 0 | I12: =SUM(D12:H12) -> 21401.25
A13: Operating Costs | D13: ='Salary Operating and Deprec Exp'!E125 -> 7680 | E13: ='Salary Operating and Deprec Exp'!G125 -> 8120 | F13: ='Salary Operating and Deprec Exp'!I125 -> 0 | G13: ='Salary Operating and Deprec Exp'!K125 -> 0 | H13: ='Salary Operating and Deprec Exp'!M125 -> 0 | I13: =SUM(D13:H13) -> 15800
A14: Capital equipment depreciation | D14: =IFERROR('Salary Operating and Deprec Exp'!N252,0) -> 932.0845714 | E14: =IFERROR('Salary Operating and Deprec Exp'!P252,0) -> 1821.428571 | F14: =IFERROR('Salary Operating and Deprec Exp'!R252,0) -> 0 | G14: =IFERROR('Salary Operating and Deprec Exp'!T252,0) -> 0 | H14: =IFERROR('Salary Operating and Deprec Exp'!V252,0) -> 0 | I14: =SUM(D14:H14) -> 2753.513143
J15: Annual costs totals check
A16: SUBTOTAL ANNUAL SERVICE COSTS | D16: =SUM(D12:D15) -> 30013.33457 | E16: =SUM(E12:E15) -> 9941.428571 | F16: 0 | G16: 0 | H16: 0 | I16: =SUM(D16:H16) -> 39954.76314 | J16: =ROUND((-$I$16+'Salary Operating and Deprec Exp'!AB254+'Salary Operating and Deprec Exp'!Q127+'Salary Operating and Deprec Exp'!X46),0) -> 0
A18: Estimated 2 months working capital | D18: =D16/365*60 -> 4933.698834 | E18: =E16*0.166 -> 1650.277143 | F18: 0 | G18: 0 | H18: 0 | I18: =SUM(D18:H18) -> 6583.975977
A20: TOTAL ANNUAL SERVICE COSTS (includes working capital) | D20: =D16+D18 -> 34947.03341 | E20: =E16+E18 -> 11591.70571 | F20: 0 | G20: 0 | H20: 0 | I20: =SUM(D20:H20) -> 46538.73912
J21: PY balance totals check
A22: Prior Year Balance (Add Deficit, Subtract Surplus) | D22: =-1*D9 -> -1011.457893 | E22: =-1*E9 -> -335.0289643 | F22: =-1*F9 -> 0 | G22: =-1*G9 -> 0 | H22: =-1*H9 -> 0 | I22: =SUM(D22:H22) -> -1346.486857 | J22: =$I$22+Information!$F$5 -> 0
A24: TOTAL REVISED COSTS (includes PY balance) | D24: =D22+D20 -> 33935.57551 | E24: =E22+E20 -> 11256.67675 | F24: 0 | G24: 0 | H24: 0 | I24: =SUM(D24:H24) -> 45192.25226
A26: # of Annual Units | D26: =Information!I8 -> 500 | E26: =Information!I9 -> 55 | F26: =Information!I10 -> 0 | G26: =Information!I11 -> 0 | H26: =Information!I12 -> 0
A27: Unit Base | D27: =Information!H8 -> Hour | E27: =Information!H9 -> Fixed | F27: =Information!H10 -> 0 | G27: =Information!H11 -> 0 | H27: =Information!H12 -> 0
A29: CALCULATED SUBSIDIZED RATE (per unit) | D29: =IF(D26<>0,D24/D26,0) -> 67.87115102 | E29: =IF(E26<>0,E24/E26,0) -> 204.66685 | F29: 0 | G29: 0 | H29: 0
A31: UNIT RATE TO BE CHARGED TO UI DEPARTMENTS* | D31: 65 | E31: 185
A33: % difference between cal rate and dept charged (capped at 15%) | D33: =IF(D31=0,0,D31/D29-1) -> -0.04230296645 | E33: =IF(E31=0,0,E31/E29-1) -> -0.0960920149 | F33: 0 | G33: 0 | H33: 0
A34: % of Total Costs | D34: =IF(D16=0,0,D16/$I$16) -> 0.7511828931 | E34: =IF(E16=0,0,E16/$I$16) -> 0.2488171069 | F34: =IF(F16=0,0,F16/$I$16) -> 0 | G34: =IF(G16=0,0,G16/$I$16) -> 0 | H34: =IF(H16=0,0,H16/$I$16) -> 0 | I34: =SUM(D34:H34) -> 1
J35: Subsidy totals check
A36: Salary & Operating Exp Subsidies | D36: =SUM('Salary Operating and Deprec Exp'!$X$47,'Salary Operating and Deprec Exp'!$Q$128)*'Rate Summary'!D34 -> 40716.55415 | E36: =SUM('Salary Operating and Deprec Exp'!$X$47,'Salary Operating and Deprec Exp'!$Q$128)*'Rate Summary'!E34 -> 13486.69585 | F36: =SUM('Salary Operating and Deprec Exp'!$X$47,'Salary Operating and Deprec Exp'!$Q$128)*'Rate Summary'!F34 -> 0 | G36: =SUM('Salary Operating and Deprec Exp'!$X$47,'Salary Operating and Deprec Exp'!$Q$128)*'Rate Summary'!G34 -> 0 | H36: =SUM('Salary Operating and Deprec Exp'!$X$47,'Salary Operating and Deprec Exp'!$Q$128)*'Rate Summary'!H34 -> 0 | I36: =SUM(D36:H36) -> 54203.25 | J36: =SUM($I$36+I37)-'Salary Operating and Deprec Exp'!X47-'Salary Operating and Deprec Exp'!Q128-'Salary Operating and Deprec Exp'!AB255 -> 0
A37: Recoverable "unallowable" Depreciation | D37: =SUM('Salary Operating and Deprec Exp'!$AB$255)*'Rate Summary'!D34 -> 1883.854019 | E37: =SUM('Salary Operating and Deprec Exp'!$AB$255)*'Rate Summary'!E34 -> 623.9959815 | F37: =SUM('Salary Operating and Deprec Exp'!$AB$255)*'Rate Summary'!F34 -> 0 | G37: =SUM('Salary Operating and Deprec Exp'!$AB$255)*'Rate Summary'!G34 -> 0 | H37: =SUM('Salary Operating and Deprec Exp'!$AB$255)*'Rate Summary'!H34 -> 0 | I37: =SUM(D37:H37) -> 2507.85
A38: Optional Equipment Replacement Fee (up to 10%) | B38: N | C38: 0.1 | D38: =IF($B$38="Y",SUM(D37+D14)*$C$38,0) -> 0 | E38: =IF($B$38="Y",SUM(E37+E14)*$C$38,0) -> 0 | F38: 0 | G38: 0 | H38: =IF($B$38="Y",SUM(H37+H14)*$C$38,0) -> 0 | I38: =SUM(D38:H38) -> 0
A39: Fee in excess of cost (G&A FY25 11%) | B39: Y | C39: 0.11 | D39: =IF($B$39="Y",(SUM(Information!$G$19)*$C$39)*D34,0) -> 743.6710642 | E39: =IF($B$39="Y",(SUM(Information!$G$19)*$C$39)*E34,0) -> 246.3289358 | F39: =IF($B$39="Y",(SUM(Information!$G$19)*$C$39)*F34,0) -> 0 | G39: =IF($B$39="Y",(SUM(Information!$G$19)*$C$39)*G34,0) -> 0 | H39: =IF($B$39="Y",(SUM(Information!$G$19)*$C$39)*H34,0) -> 0 | I39: 990
A41: TOTAL SERVICE COSTS (includes subsidy & unallowable depreciation) | D41: =D24+D36+D37+D38+D39 -> 77279.65475 | E41: =E24+E36+E37+E38+E39 -> 25613.69752 | F41: 0 | G41: 0 | H41: 0 | I41: =SUM(D41:H41) -> 102893.3523 | J41: =ROUND((I41-'Salary Operating and Deprec Exp'!AB256-'Salary Operating and Deprec Exp'!Q129-'Salary Operating and Deprec Exp'!X48-I18-I22),0) -> 990
A43: UNSUBSIDIZED (FULL COST) RATES: EXTERNAL CUSTOMERS | D43: =IFERROR(D41/D26,0) -> 154.5593095 | E43: =IFERROR(E41/E26,0) -> 465.7035912 | F43: =IFERROR(F41/F26,0) -> 0 | G43: =IFERROR(G41/G26,0) -> 0 | H43: =IFERROR(H41/H26,0) -> 0
A45: UNIT RATE TO BE CHARGED TO EXTERNAL CUSTOMERS* | D45: 150 | E45: 500

Sheet Rate Sheet
A2: Service Center Billing Rates
A3: ='Rate Application'!L1 -> FY2025
A4: ='Rate Application'!E6 -> University Vandal Service Center
A5: =+Information!F4 -> 150000
A7: Service | B7: Description | C7: Unit | D7: Internal Rate | E7: External Rate
A8: =Information!B8 -> Data Analysis | B8: =Information!D8 -> Analysis for service centers | C8: =Information!H8 -> Hour | D8: =Information!J8 -> 65 | E8: =IFERROR('Rate Summary'!D43,"N/A") -> 154.5593095
A9: =Information!B9 -> Meeting Setups | B9: =Information!D9 -> Planning and setup of zoom (hour meeting) | C9: =Information!H9 -> Fixed | D9: =Information!J9 -> 185 | E9: =IFERROR('Rate Summary'!E43,"N/A") -> 465.7035912
A10: =Information!B10 -> 0 | B10: =Information!D10 -> 0 | C10: =Information!H10 -> 0 | D10: =Information!J10 -> 0 | E10: =IFERROR('Rate Summary'!F43,"N/A") -> 0
A11: =Information!B11 -> 0 | B11: =Information!D11 -> 0 | C11: =Information!H11 -> 0 | D11: =Information!J11 -> 0 | E11: =IFERROR('Rate Summary'!G43,"N/A") -> 0
A12: =Information!B12 -> 0 | B12: =Information!D12 -> 0 | C12: =Information!H12 -> 0 | D12: =Information!J12 -> 0 | E12: =IFERROR('Rate Summary'!H43,"N/A") -> 0
A17: Approver's Signatures | D17: Date
A21: Heather Clark, Assistant Director Sponsored Accounting
A25: Amanda Bauer, University Controller

Sheet Index Summary
A1: ='Rate Application'!E7&" Index Summary" -> Morrill Hall (017), Room 209D Index Summary
A2: =IFERROR(Information!E3,"") -> University Vandal Service Center
A3: ='Rate Application'!L1 -> FY2025
A6: =Information!B18&" "&Information!D18 -> 79XXXX/150000 | F6: =Information!B27&" "&Information!C27 -> 79XXXX/151001 University Vandal Service Center - Equip Reserve Account
A7: Projected Operating Index | F7: Projected Capital Equip Replacement Index
A9: Revenue | F9: Depreciation
B10: =+Information!B8 -> Data Analysis | C10: =IFERROR(('Rate Summary'!D31*'Rate Summary'!D26),0) -> 32500 | G10: Transfer from operating index ** | H10: =C20+C25 -> 2753.513143
B11: =+Information!B9 -> Meeting Setups | C11: =IFERROR(('Rate Summary'!E31*'Rate Summary'!E26),0) -> 10175 | G11: Prior year carryover | H11: =Information!J27 -> 7753.513143
B12: =+Information!B10 -> 0 | C12: =IFERROR(('Rate Summary'!F$31*'Rate Summary'!F$26),0) -> 0
B13: =+Information!B11 -> 0 | C13: =IFERROR(('Rate Summary'!G$31*'Rate Summary'!G$26),0) -> 0 | F13: Total Accumulated Depreciation | H13: =SUM(H10:H12) -> 10507.02629
B14: =+Information!B12 -> 0 | C14: =IFERROR(('Rate Summary'!H$31*'Rate Summary'!H$26),0) -> 0
A15: Total Revenue | C15: =SUM(C10:C14) -> 42675 | F15: Expenditures
G16: Capital Outlay > $5,000 *
A17: Expenditures
B18: Salaries, Fringes, TH | C18: ='Salary Operating and Deprec Exp'!X46 -> 21401.25
B19: Operating Expenses | C19: ='Salary Operating and Deprec Exp'!Q127 -> 15800
B20: Capital Equipment depreciation transfer | C20: =IFERROR('Salary Operating and Deprec Exp'!AB254,0) -> 2753.513143
A22: Total Expenditures | C22: =SUM(C18:C21) -> 39954.76314
F23: Total Expenditures | H23: =SUM(H16:H22) -> 0
A24: Net | C24: =C15-C22 -> 2720.236857
B25: One time carryforward transfer (if applicable)* | F25: Net | H25: =H13-H23 -> 10507.02629
A26: Grand total | C26: =C24-C25 -> 2720.236857

Sheet Reviewer Notes
A1: Service Center Reviewer Notes
D2: Recommend approval | E2: Recommend Rework
A3: Date
A4: Reviewer
B7: Fund | C7: =Information!B18 -> 79XXXX/150000 | D7: =Information!C18 -> University Vandal Service Center - Operating Account
B9: Fund Balance | C9: ="FY"&RIGHT('Rate Application'!L1,2)-1 -> FY24 | D9: ="FY"&ABS(RIGHT(C9,2)-1) -> FY23 | E9: ="FY"&ABS(RIGHT(D9,2)-1) -> FY22
B10: Beg Balance
B11: Revenues
B12: Expenditures
B13: Encumbrances
B14: Transfers Out
B16: Ending Balance | C16: =C10+C11-C12-C13-C14 -> 0 | D16: =D10+D11-D12-D13-D14 -> 0 | E16: 0
B18: Fund | C18: =Information!B27 -> 79XXXX/151001 | D18: =Information!#REF! -> 
B20: Fund Balance | C20: ="FY"&RIGHT('Rate Application'!L1,2)-1 -> FY24 | D20: ="FY"&ABS(RIGHT(C20,2)-1) -> FY23 | E20: ="FY"&ABS(RIGHT(D20,2)-1) -> FY22
B21: Beg Balance
B22: Revenues
B23: Expenditures
B24: Encumbrances
B25: Transfers Out
B27: Ending Balance | C27: =C21+C22-C23-C24-C25 -> 0 | D27: =D21+D22-D23-D24-D25 -> 0 | E27: 0
A29: Date | B29: Comments | F29: Reviewer initials
